Workbook

Sheet Main
A1: Acetone Cracking PFR with Counter-current Heat Exchange | G1: Rgas | H1: 8.314 | I1: kJ/kgmol/K | J1: NoSteps | K1: 200 | M1: TAirError | N1: =TAirF-G2012 -> -0.0001322246717
A2: 2019-09-26 | C2: Simplified Model | G2: MWA | H2: 58.08 | I2: kg/kgmol | J2: dV | K2: 1e-06 | M2: Use Solver to drive this to zero | T2: Sensitivity Analysis of Heat Capacity and Heat of Reaction
A3: Reactor Specifications | D3: Heat Transfer | G3: MWAir | H3: 28.96 | I3: kg/kgmol | U3: Acetone | V3: Ketene | W3: Methane | X3: Air | Y3: HtRxn
A4: NoTubes | B4: 1000 | D4: A | E4: =4/TubeID -> 149.8127341 | F4: m2/m3 | J4: Air Feed | M4: Reaction Kinetics | P4: Heat Capacities at 1000K | T4: 1000 | U4: =CpA(T4) -> 163.8932 | V4: =CpK(T4) -> 84.653 | W4: =CpM(T4) -> 71.794054 | X4: =CpAir(T4) -> 32.889 | Y4: =HtRxn(T4) -> 79434.75051
A5: TotalVolume | B5: 2 | C5: m3 | D5: U | E5: 400 | F5: kJ/m2/hr/K | G5: Acetone Feed | J5: MassFeedAir | K5: =8*11088 -> 88704 | L5: kg/hr | M5: lnk0 | N5: 42.529 | P5: Cp_A | Q5: =CpA(1000) -> 163.8932 | R5: kJ/kgmol/K | T5: 1050 | U5: =CpA(T5) -> 167.283545 | V5: =CpK(T5) -> 85.92736155 | W5: =CpM(T5) -> 73.72049349 | X5: =CpAir(T5) -> 33.16941438 | Y5: =HtRxn(T5) -> 79057.45228
A6: VolPerTube | B6: =TotalVolume/NoTubes -> 0.002 | C6: m3 | G6: MassFeedA | H6: 7850 | I6: kg/hr | J6: FAirM | K6: =MassFeedAir/NoTubes -> 88.704 | L6: kg/hr per tube | M6: k0 | N6: =EXP(lnk0) -> 2.951956958e+18 | O6: 1/hr | P6: Cp_K | Q6: =CpK(1000) -> 84.653 | T6: 1100 | U6: 170.43996 | V6: 87.1314268 | W6: 75.53506965 | X6: 33.442875 | Y6: 78672.04542
A7: TubeID | B7: 0.0267 | C7: m3 | D7: Feed Conditions | G7: FAM | H7: =MassFeedA/NoTubes -> 7.85 | I7: kg/hr per tube | J7: FAir | K7: =FAirM/MWAir -> 3.062983425 | L7: kgmol/hr | M7: E | N7: 284522 | O7: kJ/kgmol | P7: Cp_M | Q7: =CpM(1000) -> 71.794054 | T7: 1150 | U7: 173.388515 | V7: 88.26957905 | W7: 77.24075 | X7: 33.70790813 | Y7: 78280.65789
A8: TubeXC | B8: =PI()*TubeID^2/4 -> 0.0005599024967 | C8: m2 | D8: TF | E8: 1035 | F8: K | G8: FAF | H8: =FAM/MWA -> 0.1351584022 | I8: kgmol/hr | J8: TAirF | K8: 1250 | L8: K | T8: 1200 | U8: 176.15528 | V8: 89.3440848 | W8: 78.84079356 | X8: 33.96304 | Y8: 77884.43642
A9: TubeLength | B9: =VolPerTube/TubeXC -> 3.572050512 | C9: m | D9: PF | E9: 162 | F9: kPa | G9: CAF | H9: =PF/Rgas/TF -> 0.01882628568 | I9: kgmol/m3 | J9: Tair0 | K9: 1112.890374 | L9: K - estimate | M9: Tref | N9: 298.15 | O9: K | P9: Heat Capacity of Air at 1100K | T9: % max change | U9: =(U8-U4)/U6 -> 0.07194369208 | V9: =(V8-V4)/V6 -> 0.05383918263 | W9: 0.09329096526 | X9: 0.03211565991 | Y9: -0.01970603511
P10: Cp_Air | Q10: =CpAir(1100) -> 33.442875
A11: Reactor Volume (m3) | B11: FA (kgmol/hr) | C11: FK (kgmol/hr) | D11: FM (kgmol/hr) | E11: FT (kgmol/hr) | F11: T (K) | G11: TAir (K) | H11: CA (kgmol/m3) | I11: rA (kgmol/m3/hr) | J11: dFA/dV (kgmol/m3/hr) | K11: dT/dV (K/m3) | L11: dTa/dV (K/m3) | M11: Conversion
A12: 0 | B12: =FAF -> 0.1351584022 | C12: 0 | D12: 0 | E12: 0 | F12: =TF -> 1035 | G12: =Tair0 -> 1112.890374 | H12: =CAF -> 0.01882628568 | I12: =k0*EXP(-E/Rgas/TF)*H12 -> 242.6768093 | J12: =-I12 -> -242.6768093 | K12: =(I12*(-HtRxn(F12))+U*A*(G12-F12))/(B12*Cp_A+C12*Cp_K+D12*Cp_M) -> -656637.1799 | L12: =-U*A*(F12-G12)/FAir/Cp_Air -> 45566.35161 | M12: =(FAF-B12)/FAF -> 0
A13: 1e-06 | B13: =B12+J12*dV -> 0.1349157254 | C13: =FAF-B13 -> 0.0002426768093 | D13: =FAF-B13 -> 0.0002426768093 | E13: =B13+C13+D13 -> 0.135401079 | F13: =F12+K12*dV -> 1034.343363 | G13: =G12+L12*dV -> 1112.93594 | H13: =B13/E13*CAF*TF/F13 -> 0.01877071042 | I13: =k0*EXP(-E/Rgas/F13)*H13 -> 236.9344499 | J13: =-I13 -> -236.9344499 | K13: -634318.8541 | L13: 45977.14503 | M13: 0.001795499247
A14: 2e-06 | B14: 0.1346787909 | C14: 0.0004796112593 | D14: 0.0004796112593 | E14: =B14+C14+D14 -> 0.1356380135 | F14: 1033.709044 | G14: 1112.981917 | H14: 0.0187164926 | I14: 231.5019675 | J14: =-I14 -> -231.5019675 | K14: -613158.4591 | L14: 46375.12241 | M14: 0.003548512349
A15: 3e-06 | B15: 0.134447289 | C15: 0.0007111132268 | D15: 0.0007111132268 | E15: 0.1358695154 | F15: 1033.095886 | G15: 1113.028292 | H15: 0.01866355562 | I15: 226.3555614 | J15: =-I15 -> -226.3555614 | K15: -593068.6745 | L15: 46760.95364 | M15: 0.005261332001
A16: 4e-06 | B16: 0.1342209334 | C16: 0.0009374687882 | D16: 0.0009374687882 | E16: 0.136095871 | F16: 1032.502817 | G16: 1113.075053 | H16: 0.01861182904 | I16: 221.473798 | J16: -221.473798 | K16: -573970.7786 | L16: 47135.25794 | M16: 0.006936074805
A17: 5e-06 | B17: 0.1339994596 | C17: 0.001158942586 | D17: 0.001158942586 | E17: 0.1363173448 | F17: 1031.928846 | G17: 1113.122189 | H17: 0.01856124787 | I17: 216.8373239 | J17: -216.8373239 | K17: -555793.6128 | L17: 47498.60882 | M17: 0.008574698777
A18: 6e-06 | B18: 0.1337826223 | C18: 0.00137577991 | D18: 0.00137577991 | E18: 0.1365341821 | F18: 1031.373052 | G18: 1113.169687 | H18: 0.01851175209 | I18: 212.4286201 | J18: -212.4286201 | K18: -538472.6934 | L18: 47851.53851 | M18: 0.01017901875
A19: 7e-06 | B19: 0.1335701937 | C19: 0.00158820853 | D19: 0.00158820853 | E19: 0.1367466107 | F19: 1030.83458 | G19: 1113.217539 | H19: 0.01846328613 | I19: 208.2317898 | J19: -208.2317898 | K19: -521949.4445 | L19: 48194.54182 | M19: 0.01175071993
A20: 8e-06 | B20: 0.1333619619 | C20: 0.00179644032 | D20: 0.00179644032 | E20: =B20+C20+D20 -> 0.1369548425 | F20: 1030.31263 | G20: 1113.265733 | H20: 0.01841579846 | I20: 204.2323753 | J20: -204.2323753 | K20: -506170.5356 | L20: 48528.07959 | M20: 0.01329136991
A21: 9e-06 | B21: 0.1331577295 | C21: 0.002000672695 | D21: 0.002000672695 | E21: 0.1371590749 | F21: 1029.80646 | G21: 1113.314261 | H21: 0.0183692412 | I21: 200.417199 | J21: -200.417199 | K21: -491087.3062 | L21: 48852.58172 | M21: 0.01480242932
A22: 1e-05 | B22: 0.1329573123 | C22: 0.002201089894 | D22: 0.002201089894 | E22: 0.1373594921 | F22: 1029.315372 | G22: 1113.363114 | H22: 0.01832356979 | I22: 196.774225 | J22: -196.774225 | K22: -476655.2641 | L22: 49168.4499 | M22: 0.01628526128
A23: 1.1e-05 | B23: 0.1327605381 | C23: 0.002397864119 | D23: 0.002397864119 | E23: 0.1375562663 | F23: 1028.838717 | G23: 1113.412282 | H23: 0.01827874271 | I23: 193.2924385 | J23: -193.2924385 | K23: -462833.6475 | L23: 49476.06004 | M23: 0.01774113988
A24: 1.2e-05 | B24: 0.1325672456 | C24: 0.002591156558 | D24: 0.002591156558 | E24: 0.1377495588 | F24: 1028.375884 | G24: 1113.461758 | H24: 0.0182347212 | I24: 189.9617396 | J24: -189.9617396 | K24: -449585.0416 | L24: 49775.76439 | M24: 0.01917125769
A25: 1.3e-05 | B25: 0.1323772839 | C25: 0.002781118297 | D25: 0.002781118297 | E25: 0.1379395205 | F25: 1027.926299 | G25: 1113.511534 | H25: 0.01819146902 | I25: 186.7728507 | J25: -186.7728507 | K25: -436875.0408 | L25: 50067.89356 | M25: 0.02057673257
A26: 1.4e-05 | B26: 0.1321905111 | C26: 0.002967891148 | D26: 0.002967891148 | E26: 0.1381262934 | F26: 1027.489423 | G26: 1113.561602 | H26: 0.01814895226 | I26: 183.7172348 | J26: -183.7172348 | K26: -424671.9516 | L26: 50352.75819 | M26: 0.02195861374
A27: 1.5e-05 | B27: 0.1320067938 | C27: 0.003151608383 | D27: 0.003151608383 | E27: 0.1383100106 | F27: 1027.064752 | G27: 1113.611955 | H27: 0.01810713911 | I27: 180.7870226 | J27: -180.7870226 | K27: -412946.5299 | L27: 50630.65059 | M27: 0.02331788724
A28: 1.6e-05 | B28: 0.1318260068 | C28: 0.003332395405 | D28: 0.003332395405 | E28: 0.1384907976 | F28: 1026.651805 | G28: 1113.662586 | H28: 0.01806599974 | I28: 177.9749494 | J28: -177.9749494 | K28: -401671.7483 | L28: 50901.84612 | M28: 0.02465548091
A29: 1.7e-05 | B29: 0.1316480318 | C29: 0.003510370355 | D29: 0.003510370355 | E29: 0.1386687726 | F29: 1026.250133 | G29: 1113.713487 | H29: 0.0180255061 | I29: 175.2742976 | J29: -175.2742976 | K29: -390822.5895 | L29: 51166.60448 | M29: 0.02597226882
A30: 1.8e-05 | B30: 0.1314727576 | C30: 0.003685644652 | D30: 0.003685644652 | E30: 0.1388440469 | F30: 1025.859311 | G30: 1113.764654 | H30: 0.01798563181 | I30: 172.6788465 | J30: -172.6788465 | K30: -380375.8624 | L30: 51425.1709 | M30: 0.02726907534
A31: 1.9e-05 | B31: 0.1313000787 | C31: 0.003858323499 | D31: 0.003858323499 | E31: 0.1390167257 | F31: 1025.478935 | G31: 1113.816079 | H31: 0.01794635201 | I31: 170.1828276 | J31: -170.1828276 | K31: -370310.0379 | L31: 51677.77718 | M31: 0.02854667883
A32: 2e-05 | B32: 0.1311298959 | C32: 0.004028506326 | D32: 0.004028506326 | E32: 0.1391869085 | F32: 1025.108625 | G32: 1113.867757 | H32: 0.01790764327 | I32: 167.7808838 | J32: -167.7808838 | K32: -360605.1024 | L32: 51924.64267 | M32: 0.02980581496
A33: 2.1e-05 | B33: 0.130962115 | C33: 0.00419628721 | D33: 0.00419628721 | E33: 0.1393546894 | F33: 1024.74802 | G33: 1113.919682 | H33: 0.01786948347 | I33: 165.4680337 | J33: -165.4680337 | K33: -351242.4265 | L33: 52165.97513 | M33: 0.03104717977
A34: 2.2e-05 | B34: 0.130796647 | C34: 0.004361755244 | D34: 0.004361755244 | E34: 0.1395201574 | F34: 1024.396777 | G34: 1113.971848 | H34: 0.01783185171 | I34: 163.2396394 | J34: -163.2396394 | K34: -342204.6467 | L34: 52401.97154 | M34: 0.03227143243
A35: 2.3e-05 | B35: 0.1306334073 | C35: 0.004524994883 | D35: 0.004524994883 | E35: 0.1396833971 | F35: 1024.054573 | G35: 1114.02425 | H35: 0.01779472822 | I35: 161.0913776 | J35: -161.0913776 | K35: -333475.5598 | L35: 52632.81886 | M35: 0.03347919781
A36: 2.4e-05 | B36: 0.1304723159 | C36: 0.004686086261 | D36: 0.004686086261 | E36: 0.1398444885 | F36: 1023.721097 | G36: 1114.076882 | H36: 0.01775809429 | I36: 159.0192127 | J36: -159.0192127 | K36: -325040.027 | L36: 52858.69466 | M36: 0.03467106879
A37: 2.5e-05 | B37: 0.1303132967 | C37: 0.004845105474 | D37: 0.004845105474 | E37: 0.1400035077 | F37: 1023.396057 | G37: 1114.129741 | H37: 0.01772193218 | I37: 157.0193745 | J37: -157.0193745 | K37: -316883.8877 | L37: 53079.76775 | M37: 0.0358476084
A38: 2.6e-05 | B38: 0.1301562774 | C38: 0.005002124848 | D38: 0.005002124848 | E38: 0.1401605271 | F38: 1023.079173 | G38: 1114.182821 | H38: 0.01768622507 | I38: 155.0883355 | J38: -155.0883355 | K38: -308993.8819 | L38: 53296.19878 | M38: 0.03700935174
A39: 2.7e-05 | B39: 0.130001189 | C39: 0.005157213184 | D39: 0.005157213184 | E39: 0.1403156154 | F39: 1022.770179 | G39: 1114.236117 | H39: 0.01765095699 | I39: 153.2227929 | J39: -153.2227929 | K39: -301357.5788 | L39: 53508.14073 | M39: 0.03815680786
A40: 2.8e-05 | B40: 0.1298479662 | C40: 0.005310435976 | D40: 0.005310435976 | E40: 0.1404688382 | F40: 1022.468822 | G40: 1114.289625 | H40: 0.01761611278 | I40: 151.4196501 | J40: -151.4196501 | K40: -293963.3134 | L40: 53715.73937 | M40: 0.03929046134
A41: 2.9e-05 | B41: 0.1296965466 | C41: 0.005461855627 | D41: 0.005461855627 | E41: 0.1406202578 | F41: 1022.174858 | G41: 1114.343341 | H41: 0.01758167801 | I41: 149.6760016 | J41: -149.6760016 | K41: -286800.1282 | L41: 53919.13377 | M41: 0.04041077386
A42: 3e-05 | B42: 0.1295468706 | C42: 0.005611531628 | D42: 0.005611531628 | E42: 0.1407699338 | F42: 1021.888058 | G42: 1114.39726 | H42: 0.01754763896 | I42: 147.9891181 | J42: -147.9891181 | K42: -279857.7197 | L42: 54118.45666 | M42: 0.0415181856
A43: 3.1e-05 | B43: 0.1293988815 | C43: 0.005759520746 | D43: 0.005759520746 | E43: 0.140917923 | F43: 1021.6082 | G43: 1114.451378 | H43: 0.01751398256 | I43: 146.3564334 | J43: -146.3564334 | K43: -273126.3908 | L43: 54313.83479 | M43: 0.04261311655
A44: 3.2e-05 | B44: 0.129252525 | C44: 0.00590587718 | D44: 0.00590587718 | E44: 0.1410642794 | F44: 1021.335074 | G44: 1114.505692 | H44: 0.01748069637 | I44: 144.7755328 | J44: -144.7755328 | K44: -266597.0061 | L44: 54505.38935 | M44: 0.04369596772
A45: 3.3e-05 | B45: 0.1291077495 | C45: =FAF-B45 -> 0.006050652712 | D45: =FAF-B45 -> 0.006050652712 | E45: 0.1412090549 | F45: 1021.068477 | G45: 1114.560198 | H45: 0.0174477685 | I45: 143.2441415 | J45: -143.2441415 | K45: -260260.9522 | L45: 54693.23624 | M45: 0.04476712223
A46: 3.4e-05 | B46: 0.1289645053 | C46: 0.006193896854 | D46: 0.006193896854 | E46: 0.1413522991 | F46: 1020.808216 | G46: 1114.614891 | H46: 0.01741518762 | I46: 141.7601154 | J46: -141.7601154 | K46: -254110.1005 | L46: 54877.4864 | M46: 0.04582694641
A47: 3.5e-05 | B47: 0.1288227452 | C47: 0.006335656969 | D47: 0.006335656969 | E47: 0.1414940592 | F47: 1020.554106 | G47: 1114.669768 | H47: 0.01738294292 | I47: 140.3214311 | J47: -140.3214311 | K47: -248136.7735 | L47: 55058.24605 | M47: 0.04687579067
A48: 3.6e-05 | B48: 0.1286824238 | C48: 0.0064759784 | D48: 0.0064759784 | E48: 0.1416343806 | F48: 1020.305969 | G48: 1114.724827 | H48: 0.01735102405 | I48: 138.926178 | J48: -138.926178 | K48: -242333.7138 | L48: 55235.61702 | M48: 0.04791399051
A49: 3.7e-05 | B49: 0.1285434976 | C49: 0.006614904578 | D49: 0.006614904578 | E49: 0.1417733068 | F49: 1020.063636 | G49: 1114.780062 | H49: 0.01731942113 | I49: 137.5725507 | J49: -137.5725507 | K49: -236694.0559 | L49: 55409.69692 | M49: 0.04894186725
A50: 3.8e-05 | B50: 0.1284059251 | C50: 0.006752477129 | D50: 0.006752477129 | E50: 0.1419108793 | F50: 1019.826941 | G50: 1114.835472 | H50: 0.0172881247 | I50: 136.2588414 | J50: -136.2588414 | K50: -231211.2996 | L50: 55580.57943 | M50: 0.04995972887
A51: 3.9e-05 | B51: 0.1282696662 | C51: 0.006888735971 | D51: 0.006888735971 | E51: 0.1420471382 | F51: 1019.59573 | G51: 1114.891053 | H51: 0.0172571257 | I51: 134.9834337 | J51: -134.9834337 | K51: -225879.2861 | L51: 55748.35445 | M51: 0.05096787072
A52: 4e-05 | B52: 0.1281346828 | C52: 0.007023719404 | D52: 0.007023719404 | E52: 0.1421821216 | F52: 1019.369851 | G52: 1114.946801 | H52: 0.01722641547 | I52: 133.7447967 | J52: -133.7447967 | K52: -220692.1761 | L52: 55913.10837 | M52: 0.05196657618
A53: 4.1e-05 | B53: 0.128000938 | C53: 0.007157464201 | D53: 0.007157464201 | E53: 0.1423158664 | F53: 1019.149159 | G53: 1115.002714 | H53: 0.0171959857 | I53: 132.5414791 | J53: -132.5414791 | K53: -215644.4286 | L53: 56074.92418 | M53: 0.0529561173
A54: 4.2e-05 | B54: 0.1278683965 | C54: 0.00729000568 | D54: 0.00729000568 | E54: 0.1424484079 | F54: 1018.933514 | G54: 1115.058789 | H54: 0.0171658284 | I54: 131.3721046 | J54: -131.3721046 | K54: -210730.7827 | L54: 56233.88168 | M54: 0.0539367554
A55: 4.3e-05 | B55: 0.1277370244 | C55: 0.007421377785 | D55: 0.007421377785 | E55: 0.14257978 | F55: 1018.722784 | G55: 1115.115023 | H55: 0.01713593595 | I55: 130.2353664 | J55: -130.2353664 | K55: -205946.2395 | L55: 56390.05767 | M55: 0.05490874162
A56: 4.4e-05 | B56: 0.1276067891 | C56: 0.007551613151 | D56: 0.007551613151 | E56: 0.1427100154 | F56: 1018.516837 | G56: 1115.171413 | H56: 0.017106301 | I56: 129.1300237 | J56: -129.1300237 | K56: -201286.0465 | L56: 56543.52603 | M56: 0.05587231743
A57: 4.5e-05 | B57: 0.127477659 | C57: 0.007680743175 | D57: 0.007680743175 | E57: 0.1428391454 | F57: 1018.315551 | G57: 1115.227956 | H57: 0.01707691649 | I57: 128.0548969 | J57: -128.0548969 | K57: -196745.6819 | L57: 56694.35793 | M57: 0.05682771511
A58: 4.6e-05 | B58: 0.1273496041 | C58: 0.007808798072 | D58: 0.007808798072 | E58: 0.1429672003 | F58: 1018.118806 | G58: 1115.284651 | H58: 0.01704777567 | I58: 127.0088645 | J58: -127.0088645 | K58: -192320.8411 | L58: 56842.62192 | M58: 0.05777515822
A59: 4.7e-05 | B59: 0.1272225953 | C59: 0.007935806936 | D59: 0.007935806936 | E59: 0.1430942091 | F59: 1017.926485 | G59: 1115.341493 | H59: 0.01701887201 | I59: 125.990859 | J59: -125.990859 | K59: -188007.4238 | L59: 56988.38409 | M59: 0.05871486202
A60: 4.8e-05 | B60: 0.1270966044 | C60: 0.008061797795 | D60: 0.008061797795 | E60: 0.1432202 | F60: 1017.738477 | G60: 1115.398482 | H60: 0.01699019926 | I60: 124.9998641 | J60: -124.9998641 | K60: -183801.5216 | L60: 57131.70816 | M60: 0.05964703388
A61: 4.9e-05 | B61: 0.1269716045 | C61: 0.008186797659 | D61: 0.008186797659 | E61: 0.1433451999 | F61: 1017.554676 | G61: 1115.455614 | H61: 0.01696175139 | I61: 124.0349115 | J61: -124.0349115 | K61: -179699.4073 | L61: 57272.65559 | M61: 0.06057187364
A62: 5e-05 | B62: 0.1268475696 | C62: 0.008310832571 | D62: 0.008310832571 | E62: 0.1434692348 | F62: 1017.374976 | G62: 1115.512886 | H62: 0.0169335226 | I62: 123.0950782 | J62: -123.0950782 | K62: -175697.5241 | L62: 57411.28572 | M62: 0.06148957398
A63: 5.1e-05 | B63: 0.1267244746 | C63: 0.008433927649 | D63: 0.008433927649 | E63: 0.1435923299 | F63: 1017.199279 | G63: 1115.570297 | H63: 0.01690550731 | I63: 122.1794837 | J63: -122.1794837 | K63: -171792.4763 | L63: 57547.65582 | M63: 0.06240032075
A64: 5.2e-05 | B64: 0.1266022951 | C64: 0.008556107133 | D64: 0.008556107133 | E64: 0.1437145093 | F64: 1017.027486 | G64: 1115.627845 | H64: 0.01687770012 | I64: 121.2872879 | J64: -121.2872879 | K64: -167981.0198 | L64: 57681.82121 | M64: 0.06330429328
A65: 5.3e-05 | B65: 0.1264810078 | C65: 0.008677394421 | D65: 0.008677394421 | E65: 0.1438357966 | F65: 1016.859505 | G65: 1115.685527 | H65: 0.01685009587 | I65: 120.4176886 | J65: -120.4176886 | K65: -164260.0539 | L65: 57813.83538 | M65: 0.06420166471
A66: 5.4e-05 | B66: 0.1263605901 | C66: 0.008797812109 | D66: 0.008797812109 | E66: 0.1439562143 | F66: 1016.695245 | G66: 1115.743341 | H66: 0.01682268953 | I66: 119.5699194 | J66: -119.5699194 | K66: -160626.6136 | L66: 57943.74998 | M66: 0.0650926022
A67: 5.5e-05 | B67: 0.1262410202 | C67: 0.008917382029 | D67: 0.008917382029 | E67: 0.1440757842 | F67: 1016.534619 | G67: 1115.801285 | H67: 0.01679547629 | I67: 118.7432476 | J67: -118.7432476 | K67: -157077.862 | L67: 58071.615 | M67: 0.06597726729
A68: 5.6e-05 | B68: 0.1261222769 | C68: 0.009036125276 | D68: 0.009036125276 | E68: 0.1441945275 | F68: 1016.377541 | G68: 1115.859356 | H68: 0.0167684515 | I68: 117.9369729 | J68: -117.9369729 | K68: -153611.0834 | L68: 58197.47877 | M68: 0.06685581606
A69: 5.7e-05 | B69: 0.12600434 | C69: 0.009154062249 | D69: 0.009154062249 | E69: 0.1443124645 | F69: 1016.22393 | G69: 1115.917554 | H69: 0.01674161065 | I69: 117.150425 | J69: -117.150425 | K69: -150223.677 | L69: 58321.3881 | M69: 0.06772839942
A70: 5.8e-05 | B70: 0.1258871895 | C70: 0.009271212674 | D70: 0.009271212674 | E70: 0.1444296149 | F70: 1016.073706 | G70: 1115.975875 | H70: 0.0167149494 | I70: 116.3829624 | J70: -116.3829624 | K70: -146913.1508 | L70: 58443.38825 | M70: 0.06859516333
A71: 5.9e-05 | B71: 0.1257708066 | C71: 0.009387595637 | D71: 0.009387595637 | E71: 0.1445459978 | F71: 1015.926793 | G71: 1116.034318 | H71: 0.01668846356 | I71: 115.6339707 | J71: -115.6339707 | K71: -143677.1158 | L71: 58563.5231 | M71: 0.06945624899
A72: 6e-05 | B72: 0.1256551726 | C72: 0.009503229607 | D72: 0.009503229607 | E72: 0.1446616318 | F72: 1015.783116 | G72: 1116.092882 | H72: 0.01666214908 | I72: 114.9028612 | J72: -114.9028612 | K72: -140513.2809 | L72: 58681.83513 | M72: 0.07031179307
A73: 6.1e-05 | B73: 0.1255402697 | C73: 0.009618132468 | D73: 0.009618132468 | E73: 0.1447765347 | F73: 1015.642602 | G73: 1116.151564 | H73: 0.01663600204 | I73: 114.1890699 | J73: -114.1890699 | K73: -137419.448 | L73: 58798.36551 | M73: 0.07116192787
A74: 6.2e-05 | B74: 0.1254260807 | C74: 0.009732321538 | D74: 0.009732321538 | E74: 0.1448907237 | F74: 1015.505183 | G74: 1116.210362 | H74: 0.01661001864 | I74: 113.4920556 | J74: -113.4920556 | K74: -134393.5068 | L74: 58913.15414 | M74: 0.07200678152
A75: 6.3e-05 | B75: 0.1253125886 | C75: 0.009845813594 | D75: 0.009845813594 | E75: 0.1450042158 | F75: 1015.37079 | G75: 1116.269275 | H75: 0.01658419522 | I75: 112.8112992 | J75: -112.8112992 | K75: -131433.4311 | L75: 59026.23974 | M75: 0.07284647816
A76: 6.4e-05 | B76: 0.1251997773 | C76: 0.009958624893 | D76: 0.009958624893 | E76: 0.1451170271 | F76: 1015.239356 | G76: 1116.328302 | H76: 0.01655852824 | I76: 112.1463027 | J76: -112.1463027 | K76: =(I76*(-HtRxn(F76))+U*A*(G76-F76))/(B76*Cp_A+C76*Cp_K+D76*Cp_M) -> -128537.2741 | L76: =-U*A*(F76-G76)/FAir/Cp_Air -> 59137.65983 | M76: =(FAF-B76)/FAF -> 0.07368113806
A77: 6.5e-05 | B77: =B76+J76*dV -> 0.125087631 | C77: =FAF-B77 -> 0.0100707712 | D77: =FAF-B77 -> 0.0100707712 | E77: 0.1452291734 | F77: =F76+K76*dV -> 1015.110819 | G77: =G76+L76*dV -> 1116.387439 | H77: =B77/E77*CAF*TF/F77 -> 0.01653301425 | I77: =k0*EXP(-E/Rgas/F77)*H77 -> 111.4965877 | J77: -111.4965877 | K77: -125703.1648 | L77: 59247.45083 | M77: 0.07451087784
A78: 6.6e-05 | B78: 0.1249761344 | C78: 0.01018226778 | D78: 0.01018226778 | E78: 0.14534067 | F78: 1014.985116 | G78: 1116.446687 | H78: 0.01650764993 | I78: 110.8616948 | J78: -110.8616948 | K78: -122929.3042 | L78: 59355.64808 | M78: 0.07533581056
A79: 6.7e-05 | B79: 0.1248652727 | C79: 0.01029312948 | D79: 0.01029312948 | E79: 0.1454515317 | F79: 1014.862186 | G79: 1116.506042 | H79: 0.01648243207 | I79: 110.2411825 | J79: =-I79 -> -110.2411825 | K79: -120213.9619 | L79: 59462.28591 | M79: 0.07615604587
A80: 6.8e-05 | B80: 0.1247550315 | C80: 0.01040337066 | D80: 0.01040337066 | E80: 0.1455617729 | F80: 1014.741972 | G80: 1116.565505 | H80: 0.01645735752 | I80: 109.6346264 | J80: -109.6346264 | K80: -117555.4728 | L80: 59567.39763 | M80: 0.07697169019
A81: 6.9e-05 | B81: 0.1246453969 | C81: 0.01051300529 | D81: 0.01051300529 | E81: 0.1456714075 | F81: 1014.624417 | G81: 1116.625072 | H81: 0.01643242328 | I81: 109.0416183 | J81: -109.0416183 | K81: -114952.2343 | L81: 59671.01561 | M81: 0.07778284676
A82: 7e-05 | B82: 0.1245363553 | C82: 0.01062204691 | D82: 0.01062204691 | E82: 0.1457804491 | F82: 1014.509465 | G82: 1116.684743 | H82: 0.01640762641 | I82: 108.4617658 | J82: -108.4617658 | K82: -112402.7028 | L82: 59773.17129 | M82: 0.07858961583
A83: 7.1e-05 | B83: 0.1244278935 | C83: 0.01073050867 | D83: 0.01073050867 | E83: 0.1458889109 | F83: 1014.397062 | G83: 1116.744516 | H83: 0.01638296406 | I83: 107.8946909 | J83: -107.8946909 | K83: -109905.3915 | L83: 59873.89525 | M83: 0.07939209473
A84: 7.2e-05 | B84: 0.1243199988 | C84: 0.01083840336 | D84: 0.01083840336 | E84: =B84+C84+D84 -> 0.1459968056 | F84: 1014.287157 | G84: 1116.80439 | H84: 0.01635843347 | I84: 107.3400299 | J84: -107.3400299 | K84: -107458.8677 | L84: 59973.21718 | M84: 0.080190378
A85: 7.3e-05 | B85: 0.1242126588 | C85: 0.01094574339 | D85: 0.01094574339 | E85: 0.1461041456 | F85: 1014.179698 | G85: 1116.864363 | H85: 0.01633403197 | I85: 106.7974325 | J85: -106.7974325 | K85: -105061.7501 | L85: 60071.16599 | M85: 0.08098455748
A86: 7.4e-05 | B86: 0.1241058614 | C86: 0.01105254082 | D86: 0.01105254082 | E86: 0.146210943 | F86: 1014.074636 | G86: 1116.924434 | H86: 0.01630975695 | I86: 106.2665611 | J86: -106.2665611 | K86: -102712.7067 | L86: 60167.76977 | M86: 0.08177472243
A87: 7.5e-05 | B87: 0.1239995948 | C87: 0.01115880739 | D87: 0.01115880739 | E87: 0.1463172096 | F87: 1013.971923 | G87: 1116.984602 | H87: 0.01628560589 | I87: 105.7470905 | J87: -105.7470905 | K87: -100410.4528 | L87: 60263.05586 | M87: 0.08256095961
A88: 7.6e-05 | B88: 0.1238938477 | C88: 0.01126455448 | D88: 0.01126455448 | E88: 0.1464229567 | F88: 1013.871513 | G88: 1117.044865 | H88: 0.01626157634 | I88: 105.2387073 | J88: -105.2387073 | K88: -98153.74842 | L88: 60357.05086 | M88: 0.08334335337
A89: 7.7e-05 | B89: 0.123788609 | C89: 0.01136979318 | D89: 0.01136979318 | E89: 0.1465281954 | F89: 1013.773359 | G89: 1117.105222 | H89: 0.01623766593 | I89: 104.7411089 | J89: -104.7411089 | K89: -95941.3967 | L89: 60449.78066 | M89: 0.08412198574
A90: 7.8e-05 | B90: 0.1236838679 | C90: 0.01147453429 | D90: 0.01147453429 | E90: 0.1466329365 | F90: 1013.677418 | G90: 1117.165672 | H90: 0.01621387234 | I90: 104.2540038 | J90: -104.2540038 | K90: -93772.24198 | L90: 60541.27046 | M90: 0.08489693652
A91: 7.9e-05 | B91: 0.1235796139 | C91: 0.0115787883 | D91: 0.0115787883 | E91: 0.1467371905 | F91: 1013.583645 | G91: 1117.226213 | H91: 0.01619019332 | I91: 103.7771104 | J91: -103.7771104 | K91: -91645.16797 | L91: 60631.54483 | M91: 0.08566828334
A92: 8e-05 | B92: 0.1234758368 | C92: 0.01168256541 | D92: 0.01168256541 | E92: 0.1468409676 | F92: 1013.492 | G92: 1117.286845 | H92: 0.01616662668 | I92: 103.310157 | J92: -103.310157 | K92: -89559.0961 | L92: 60720.62765 | M92: 0.08643610176
A93: 8.1e-05 | B93: 0.1233725266 | C93: 0.01178587556 | D93: 0.01178587556 | E93: 0.1469442778 | F93: 1013.402441 | G93: 1117.347566 | H93: 0.01614317031 | I93: 102.8528814 | J93: -102.8528814 | K93: -87512.98394 | L93: 60808.54222 | M93: 0.08720046532
A94: 8.2e-05 | B94: 0.1232696738 | C94: 0.01188872844 | D94: 0.01188872844 | E94: 0.1470471306 | F94: 1013.314928 | G94: 1117.408374 | H94: 0.01611982214 | I94: 102.40503 | J94: -102.40503 | K94: -85505.82368 | L94: 60895.31123 | M94: 0.08796144561
A95: 8.3e-05 | B95: 0.1231672687 | C95: 0.01199113347 | D95: 0.01199113347 | E95: 0.1471495357 | F95: 1013.229422 | G95: 1117.469269 | H95: 0.01609658016 | I95: 101.9663582 | J95: -101.9663582 | K95: -83536.64068 | L95: 60980.9568 | M95: 0.08871911238
A96: 8.4e-05 | B96: 0.1230653024 | C96: 0.01209309983 | D96: 0.01209309983 | E96: 0.147251502 | F96: 1013.145886 | G96: 1117.53025 | H96: 0.01607344242 | I96: 101.5366292 | J96: -101.5366292 | K96: -81604.49213 | L96: 61065.50049 | M96: 0.08947353354
A97: 8.5e-05 | B97: 0.1229637657 | C97: 0.01219463646 | D97: 0.01219463646 | E97: 0.1473530387 | F97: 1013.064281 | G97: 1117.591316 | H97: 0.01605040701 | I97: 101.1156145 | J97: -101.1156145 | K97: -79708.46575 | L97: 61148.96332 | M97: 0.09022477525
A98: 8.6e-05 | B98: 0.1228626501 | C98: 0.01229575208 | D98: 0.01229575208 | E98: 0.1474541543 | F98: 1012.984573 | G98: 1117.652465 | H98: 0.01602747209 | I98: 100.7030929 | J98: -100.7030929 | K98: -77847.67852 | L98: 61231.36579 | M98: 0.09097290199
A99: 8.7e-05 | B99: 0.122761947 | C99: 0.01239645517 | D99: 0.01239645517 | E99: 0.1475548574 | F99: 1012.906725 | G99: 1117.713696 | H99: 0.01600463584 | I99: 100.2988503 | J99: -100.2988503 | K99: -76021.27556 | L99: 61312.7279 | M99: 0.09171797659
A100: 8.8e-05 | B100: 0.1226616482 | C100: 0.01249675402 | D100: 0.01249675402 | E100: 0.1476551562 | F100: 1012.830704 | G100: 1117.775009 | H100: 0.01598189652 | I100: 99.90267993 | J100: -99.90267993 | K100: -74228.42897 | L100: 61393.06914 | M100: 0.09246006032
A101: 8.9e-05 | B101: 0.1225617455 | C101: 0.0125966567 | D101: 0.0125966567 | E101: 0.1477550589 | F101: 1012.756475 | G101: 1117.836402 | H101: 0.01595925242 | I101: 99.51438142 | J101: -99.51438142 | K101: -72468.33678 | L101: 61472.40856 | M101: 0.09319921288
A102: 9e-05 | B102: 0.1224622311 | C102: 0.01269617108 | D102: 0.01269617108 | E102: 0.1478545733 | F102: 1012.684007 | G102: 1117.897874 | H102: 0.01593670187 | I102: 99.13376091 | J102: -99.13376091 | K102: -70740.22193 | L102: 61550.76472 | M102: 0.09393549253
A103: 9.1e-05 | B103: 0.1223630974 | C103: 0.01279530484 | D103: 0.01279530484 | E103: 0.147953707 | F103: 1012.613267 | G103: 1117.959425 | H103: 0.01591424325 | I103: 98.76063066 | J103: -98.76063066 | K103: -69043.33132 | L103: 61628.15577 | M103: 0.09466895608
A104: 9.2e-05 | B104: 0.1222643367 | C104: 0.01289406547 | D104: 0.01289406547 | E104: 0.1480524677 | F104: 1012.544223 | G104: 1118.021053 | H104: 0.01589187498 | I104: 98.39480883 | J104: -98.39480883 | K104: -67376.93486 | L104: 61704.5994 | M104: 0.09539965894
A105: 9.3e-05 | B105: 0.1221659419 | C105: 0.01299246028 | D105: 0.01299246028 | E105: 0.1481508625 | F105: 1012.476847 | G105: 1118.082758 | H105: 0.01586959551 | I105: 98.0361193 | J105: -98.0361193 | K105: -65740.32461 | L105: 61780.1129 | M105: 0.09612765518
A106: 9.4e-05 | B106: 0.1220679058 | C106: 0.0130904964 | D106: 0.0130904964 | E106: 0.1482488986 | F106: 1012.411106 | G106: 1118.144538 | H106: 0.01584740336 | I106: 97.68439137 | J106: -97.68439137 | K106: -64132.81394 | L106: 61854.71314 | M106: 0.09685299758
A107: 9.5e-05 | B107: 0.1219702214 | C107: 0.01318818079 | D107: 0.01318818079 | E107: 0.148346583 | F107: 1012.346973 | G107: 1118.206393 | H107: 0.01582529704 | I107: 97.33945961 | J107: -97.33945961 | K107: -62553.73671 | L107: 61928.41663 | M107: 0.09757573763
A108: 9.6e-05 | B108: 0.121872882 | C108: 0.01328552025 | D108: 0.01328552025 | E108: 0.1484439225 | F108: 1012.28442 | G108: 1118.268321 | H108: 0.01580327514 | I108: 97.00116364 | J108: -97.00116364 | K108: -61002.44653 | L108: 62001.23946 | M108: 0.09829592563
A109: 9.7e-05 | B109: 0.1217758808 | C109: =FAF-B109 -> 0.01338252142 | D109: =FAF-B109 -> 0.01338252142 | E109: 0.1485409236 | F109: 1012.223417 | G109: 1118.330322 | H109: 0.01578133626 | I109: 96.66934794 | J109: -96.66934794 | K109: -59478.31601 | L109: 62073.19738 | M109: 0.09901361068
A110: 9.8e-05 | B110: 0.1216792114 | C110: 0.01347919076 | D110: 0.01347919076 | E110: 0.148637593 | F110: 1012.163939 | G110: 1118.392396 | H110: 0.01575947904 | I110: 96.34386165 | J110: -96.34386165 | K110: -57980.73606 | L110: 62144.30577 | M110: 0.09972884071
A111: 9.9e-05 | B111: 0.1215828676 | C111: 0.01357553463 | D111: 0.01357553463 | E111: 0.1487339368 | F111: 1012.105958 | G111: 1118.45454 | H111: 0.01573770215 | I111: 96.02455845 | J111: -96.02455845 | K111: -56509.11526 | L111: 62214.57966 | M111: 0.1004416626
A112: 0.0001 | B112: 0.121486843 | C112: 0.01367155918 | D112: 0.01367155918 | E112: 0.1488299614 | F112: 1012.049449 | G112: 1118.516754 | H112: 0.0157160043 | I112: 95.71129633 | J112: -95.71129633 | K112: -55062.87915 | L112: 62284.03376 | M112: 0.101152122
A113: 0.000101 | B113: 0.1213911317 | C113: 0.01376727048 | D113: 0.01376727048 | E113: 0.1489256727 | F113: 1011.994386 | G113: 1118.579038 | H113: 0.01569438423 | I113: 95.40393745 | J113: -95.40393745 | K113: -53641.46968 | L113: 62352.68243 | M113: 0.1018602636
A114: 0.000102 | B114: 0.1212957278 | C114: 0.01386267442 | D114: 0.01386267442 | E114: 0.1490210766 | F114: 1011.940745 | G114: 1118.641391 | H114: 0.01567284071 | I114: 95.10234801 | J114: -95.10234801 | K114: -52244.34461 | L114: 62420.53973 | M114: 0.1025661312
A115: 0.000103 | B115: 0.1212006254 | C115: 0.01395777677 | D115: 0.01395777677 | E115: 0.149116179 | F115: 1011.8885 | G115: 1118.703812 | H115: 0.01565137252 | I115: 94.8063981 | J115: -94.8063981 | K115: -50870.97693 | L115: 62487.6194 | M115: 0.1032697675
A116: 0.000104 | B116: 0.121105819 | C116: 0.01405258316 | D116: 0.01405258316 | E116: 0.1492109854 | F116: 1011.837629 | G116: 1118.766299 | H116: 0.0156299785 | I116: 94.51596153 | J116: -94.51596153 | K116: -49520.85436 | L116: 62553.93488 | M116: 0.103971214
A117: 0.000105 | B117: 0.1210113031 | C117: 0.01414709913 | D117: 0.01414709913 | E117: 0.1493055013 | F117: 1011.788109 | G117: 1118.828853 | H117: 0.0156086575 | I117: 94.23091573 | J117: -94.23091573 | K117: -48193.47878 | L117: 62619.49933 | M117: 0.1046705117
A118: 0.000106 | B118: 0.1209170722 | C118: 0.01424133004 | D118: 0.01424133004 | E118: 0.1493997322 | F118: 1011.739915 | G118: 1118.891473 | H118: 0.01558740839 | I118: 93.95114159 | J118: -93.95114159 | K118: -46888.36581 | L118: 62684.32561 | M118: 0.1053677005
A119: 0.000107 | B119: 0.120823121 | C119: 0.01433528118 | D119: 0.01433528118 | E119: 0.1494936834 | F119: 1011.693027 | G119: 1118.954157 | H119: 0.01556623007 | I119: 93.67652339 | J119: -93.67652339 | K119: -45605.04429 | L119: 62748.42631 | M119: 0.1060628192
A120: 0.000108 | B120: 0.1207294445 | C120: 0.01442895771 | D120: 0.01442895771 | E120: 0.1495873599 | F120: 1011.647422 | G120: 1119.016906 | H120: 0.01554512149 | I120: 93.40694861 | J120: -93.40694861 | K120: -44343.05583 | L120: 62811.81376 | M120: 0.1067559062
A121: 0.000109 | B121: 0.1206360375 | C121: 0.01452236465 | D121: 0.01452236465 | E121: 0.1496807669 | F121: 1011.603079 | G121: 1119.079717 | H121: 0.01552408158 | I121: 93.1423079 | J121: -93.1423079 | K121: -43101.95439 | L121: 62874.50003 | M121: 0.1074469986
A122: 0.00011 | B122: 0.1205428952 | C122: 0.01461550696 | D122: 0.01461550696 | E122: 0.1497739092 | F122: 1011.559977 | G122: 1119.142592 | H122: 0.01550310933 | I122: 92.88249489 | J122: -92.88249489 | K122: -41881.30587 | L122: 62936.49691 | M122: 0.108136133
A123: 0.000111 | B123: 0.1204500127 | C123: 0.01470838946 | D123: 0.01470838946 | E123: 0.1498667917 | F123: 1011.518095 | G123: 1119.205528 | H123: 0.01548220374 | I123: 92.62740616 | J123: -92.62740616 | K123: -40680.68769 | L123: 62997.81597 | M123: 0.1088233452
A124: 0.000112 | B124: 0.1203573853 | C124: 0.01480101686 | D124: 0.01480101686 | E124: 0.1499594191 | F124: 1011.477415 | G124: 1119.268526 | H124: 0.01546136382 | I124: 92.37694107 | J124: -92.37694107 | K124: -39499.68842 | L124: 63058.46854 | M124: 0.10950867
A125: 0.000113 | B125: 0.1202650084 | C125: 0.0148933938 | D125: 0.0148933938 | E125: 0.150051796 | F125: 1011.437915 | G125: 1119.331585 | H125: 0.01544058863 | I125: 92.13100175 | J125: -92.13100175 | K125: -38337.90743 | L125: 63118.4657 | M125: 0.1101921417
A126: 0.000114 | B126: 0.1201728774 | C126: 0.01498552481 | D126: 0.01498552481 | E126: 0.150143927 | F126: 1011.399577 | G126: 1119.394703 | H126: 0.01541987723 | I126: 91.88949291 | J126: -91.88949291 | K126: -37194.95448 | L126: 63177.8183 | M126: 0.1108737937
A127: 0.000115 | B127: 0.1200809879 | C127: 0.0150774143 | D127: 0.0150774143 | E127: 0.1502358165 | F127: 1011.362382 | G127: 1119.457881 | H127: 0.0153992287 | I127: 91.65232184 | J127: -91.65232184 | K127: -36070.44944 | L127: 63236.537 | M127: 0.1115536589
A128: 0.000116 | B128: 0.1199893356 | C128: 0.01516906662 | D128: 0.01516906662 | E128: 0.1503274688 | F128: 1011.326312 | G128: 1119.521117 | H128: 0.01537864216 | I128: 91.41939827 | J128: -91.41939827 | K128: -34964.02196 | L128: 63294.6322 | M128: 0.1122317693
A129: 0.000117 | B129: 0.1198979162 | C129: 0.01526048602 | D129: 0.01526048602 | E129: 0.1504188882 | F129: 1011.291348 | G129: 1119.584412 | H129: 0.01535811671 | I129: 91.19063433 | J129: -91.19063433 | K129: -33875.3111 | L129: 63352.11412 | M129: 0.1129081564
A130: 0.000118 | B130: 0.1198067256 | C130: 0.01535167665 | D130: 0.01535167665 | E130: 0.1505100789 | F130: 1011.257472 | G130: 1119.647764 | H130: 0.01533765151 | I130: 90.96594441 | J130: -90.96594441 | K130: -32803.96509 | L130: 63408.99277 | M130: 0.113582851
A131: 0.000119 | B131: 0.1197157596 | C131: 0.0154426426 | D131: 0.0154426426 | E131: 0.1506010448 | F131: 1011.224668 | G131: 1119.711173 | H131: 0.01531724573 | I131: 90.74524518 | J131: -90.74524518 | K131: -31749.64101 | L131: 63465.27795 | M131: 0.1142558831
A132: 0.00012 | B132: 0.1196250144 | C132: 0.01553338784 | D132: 0.01553338784 | E132: 0.15069179 | F132: 1011.192919 | G132: 1119.774638 | H132: 0.01529689853 | I132: 90.52845542 | J132: -90.52845542 | K132: -30712.00453 | L132: 63520.97927 | M132: 0.1149272823
A133: 0.000121 | B133: 0.1195344859 | C133: 0.0156239163 | D133: 0.0156239163 | E133: 0.1507823185 | F133: 1011.162207 | G133: 1119.838159 | H133: 0.01527660912 | I133: 90.31549601 | J133: -90.31549601 | K133: -29690.72962 | L133: 63576.10615 | M133: 0.1155970775
A134: 0.000122 | B134: 0.1194441704 | C134: 0.01571423179 | D134: 0.01571423179 | E134: 0.150872634 | F134: 1011.132516 | G134: 1119.901736 | H134: 0.01525637671 | I134: 90.10628986 | J134: -90.10628986 | K134: -28685.49829 | L134: 63630.66782 | M134: 0.1162652971
A135: 0.000123 | B135: 0.1193540641 | C135: 0.01580433808 | D135: 0.01580433808 | E135: 0.1509627403 | F135: 1011.10383 | G135: 1119.965366 | H135: 0.01523620053 | I135: 89.90076182 | J135: -89.90076182 | K135: -27696.00039 | L135: 63684.67335 | M135: 0.1169319689
A136: 0.000124 | B136: 0.1192641634 | C136: 0.01589423885 | D136: 0.01589423885 | E136: 0.1510526411 | F136: 1011.076134 | G136: 1120.029051 | H136: 0.01521607982 | I136: 89.69883864 | J136: -89.69883864 | K136: -26721.93329 | L136: 63738.13161 | M136: 0.11759712
A137: 0.000125 | B137: 0.1191744645 | C137: 0.01598393768 | D137: 0.01598393768 | E137: 0.1511423399 | F137: 1011.049413 | G137: 1120.092789 | H137: 0.01519601386 | I137: 89.5004489 | J137: -89.5004489 | K137: -25763.00173 | L137: 63791.05131 | M137: 0.1182607772
A138: 0.000126 | B138: 0.1190849641 | C138: 0.01607343813 | D138: 0.01607343813 | E138: 0.1512318403 | F138: 1011.02365 | G138: 1120.15658 | H138: 0.01517600191 | I138: 89.30552297 | J138: -89.30552297 | K138: -24818.91754 | L138: 63843.44099 | M138: 0.1189229665
A139: 0.000127 | B139: 0.1189956585 | C139: 0.01616274366 | D139: 0.01616274366 | E139: 0.1513211459 | F139: 1010.998831 | G139: 1120.220423 | H139: 0.01515604328 | I139: 89.11399294 | J139: -89.11399294 | K139: -23889.39947 | L139: 63895.30902 | M139: 0.1195837136
A140: 0.000128 | B140: 0.1189065446 | C140: 0.01625185765 | D140: 0.01625185765 | E140: 0.1514102599 | F140: 1010.974941 | G140: 1120.284319 | H140: 0.01513613725 | I140: 88.92579255 | J140: -88.92579255 | K140: =(I140*(-HtRxn(F140))+U*A*(G140-F140))/(B140*Cp_A+C140*Cp_K+D140*Cp_M) -> -22974.17293 | L140: =-U*A*(F140-G140)/FAir/Cp_Air -> 63946.66362 | M140: =(FAF-B140)/FAF -> 0.1202430436
A141: 0.000129 | B141: =B140+J140*dV -> 0.1188176188 | C141: =FAF-B141 -> 0.01634078344 | D141: =FAF-B141 -> 0.01634078344 | E141: 0.1514991856 | F141: =F140+K140*dV -> 1010.951967 | G141: =G140+L140*dV -> 1120.348265 | H141: =B141/E141*CAF*TF/F141 -> 0.01511628317 | I141: =k0*EXP(-E/Rgas/F141)*H141 -> 88.74085718 | J141: -88.74085718 | K141: -22072.96985 | L141: 63997.51284 | M141: 0.1209009812
A142: 0.00013 | B142: 0.1187288779 | C142: 0.0164295243 | D142: 0.0164295243 | E142: 0.1515879265 | F142: 1010.929894 | G142: 1120.412263 | H142: 0.01509648035 | I142: 88.55912377 | J142: -88.55912377 | K142: -21185.52845 | L142: 64047.86461 | M142: 0.1215575505
A143: 0.000131 | B143: 0.1186403188 | C143: 0.01651808342 | D143: 0.01651808342 | E143: 0.1516764856 | F143: 1010.908709 | G143: 1120.476311 | H143: 0.01507672815 | I143: 88.3805308 | J143: =-I143 -> -88.3805308 | K143: -20311.59307 | L143: 64097.72667 | M143: 0.1222127752
A144: 0.000132 | B144: 0.1185519382 | C144: 0.01660646395 | D144: 0.01660646395 | E144: 0.1517648662 | F144: 1010.888397 | G144: 1120.540409 | H144: 0.01505702593 | I144: 88.2050182 | J144: -88.2050182 | K144: -19450.91399 | L144: 64147.10665 | M144: 0.1228666785
A145: 0.000133 | B145: 0.1184637332 | C145: 0.01669466897 | D145: 0.01669466897 | E145: 0.1518530712 | F145: 1010.868946 | G145: 1120.604556 | H145: 0.01503737306 | I145: 88.03252736 | J145: -88.03252736 | K145: -18603.24726 | L145: 64196.01201 | M145: 0.1235192833
A146: 0.000134 | B146: 0.1183757007 | C146: 0.0167827015 | D146: 0.0167827015 | E146: 0.1519411037 | F146: 1010.850343 | G146: 1120.668752 | H146: 0.01501776892 | I146: 87.86300104 | J146: -87.86300104 | K146: -17768.3545 | L146: 64244.45009 | M146: 0.1241706119
A147: 0.000135 | B147: 0.1182878377 | C147: 0.0168705645 | D147: 0.0168705645 | E147: 0.1520289667 | F147: 1010.832574 | G147: 1120.732996 | H147: 0.01499821292 | I147: 87.69638337 | J147: -87.69638337 | K147: -16946.00281 | L147: 64292.42809 | M147: 0.1248206861
A148: 0.000136 | B148: 0.1182001413 | C148: 0.01695826088 | D148: 0.01695826088 | E148: =B148+C148+D148 -> 0.1521166631 | F148: 1010.815628 | G148: 1120.797289 | H148: 0.01497870447 | I148: 87.53261978 | J148: -87.53261978 | K148: -16135.96457 | L148: 64339.95307 | M148: 0.1254695277
A149: 0.000137 | B149: 0.1181126087 | C149: 0.0170457935 | D149: 0.0170457935 | E149: 0.1522041957 | F149: 1010.799492 | G149: 1120.861629 | H149: 0.01495924298 | I149: 87.37165696 | J149: -87.37165696 | K149: -15338.01726 | L149: 64387.03199 | M149: 0.1261171575
A150: 0.000138 | B150: 0.118025237 | C150: 0.01713316516 | D150: 0.01713316516 | E150: 0.1522915674 | F150: 1010.784154 | G150: 1120.926016 | H150: 0.01493982789 | I150: 87.21344286 | J150: -87.21344286 | K150: -14551.94339 | L150: 64433.67163 | M150: 0.1267635965
A151: 0.000139 | B151: 0.1179380236 | C151: 0.0172203786 | D151: 0.0172203786 | E151: 0.1523787808 | F151: 1010.769603 | G151: 1120.990449 | H151: 0.01492045863 | I151: 87.05792662 | J151: -87.05792662 | K151: -13777.5303 | L151: 64479.87871 | M151: 0.1274088649
A152: 0.00014 | B152: 0.1178509657 | C152: 0.01730743653 | D152: 0.01730743653 | E152: 0.1524658387 | F152: 1010.755825 | G152: 1121.054929 | H152: 0.01490113467 | I152: 86.90505854 | J152: -86.90505854 | K152: -13014.57006 | L152: 64525.65978 | M152: 0.1280529826
A153: 0.000141 | B153: 0.1177640606 | C153: 0.01739434159 | D153: 0.01739434159 | E153: 0.1525527438 | F153: 1010.74281 | G153: 1121.119455 | H153: 0.01488185547 | I153: 86.75479007 | J153: -86.75479007 | K153: -12262.85932 | L153: 64571.02129 | M153: 0.1286959694
A154: 0.000142 | B154: 0.1176773058 | C154: 0.01748109638 | D154: 0.01748109638 | E154: 0.1526394986 | F154: 1010.730548 | G154: 1121.184026 | H154: 0.0148626205 | I154: 86.60707374 | J154: -86.60707374 | K154: -11522.19919 | L154: 64615.96959 | M154: 0.1293378443
A155: 0.000143 | B155: 0.1175906988 | C155: 0.01756770345 | D155: 0.01756770345 | E155: 0.1527261057 | F155: 1010.719025 | G155: 1121.248642 | H155: 0.01484342925 | I155: 86.46186317 | J155: -86.46186317 | K155: -10792.39512 | L155: 64660.51089 | M155: 0.1299786263
A156: 0.000144 | B156: 0.1175042369 | C156: 0.01765416532 | D156: 0.01765416532 | E156: 0.1528125675 | F156: 1010.708233 | G156: 1121.313302 | H156: 0.01482428121 | I156: 86.31911301 | J156: -86.31911301 | K156: -10073.25679 | L156: 64704.65131 | M156: 0.130618334
A157: 0.000145 | B157: 0.1174179178 | C157: 0.01774048443 | D157: 0.01774048443 | E157: 0.1528988866 | F157: 1010.69816 | G157: 1121.378007 | H157: 0.01480517588 | I157: 86.17877892 | J157: -86.17877892 | K157: -9364.597968 | L157: 64748.39685 | M157: 0.1312569854
A158: 0.000146 | B158: 0.117331739 | C158: 0.01782666321 | D158: 0.01782666321 | E158: 0.1529850654 | F158: 1010.688795 | G158: 1121.442755 | H158: 0.01478611278 | I158: 86.04081755 | J158: -86.04081755 | K158: -8666.236437 | L158: 64791.75341 | M158: 0.1318945986
A159: 0.000147 | B159: 0.1172456982 | C159: 0.01791270403 | D159: 0.01791270403 | E159: 0.1530711062 | F159: 1010.680129 | G159: 1121.507547 | H159: 0.01476709142 | I159: 85.90518651 | J159: -85.90518651 | K159: -7977.993863 | L159: 64834.72679 | M159: 0.1325311911
A160: 0.000148 | B160: 0.117159793 | C160: 0.01799860921 | D160: 0.01799860921 | E160: 0.1531570114 | F160: 1010.672151 | G160: 1121.572382 | H160: 0.01474811135 | I160: 85.77184432 | J160: -85.77184432 | K160: -7299.6957 | L160: 64877.32268 | M160: 0.13316678
A161: 0.000149 | B161: 0.1170740211 | C161: 0.01808438106 | D161: 0.01808438106 | E161: 0.1532427833 | F161: 1010.664851 | G161: 1121.637259 | H161: 0.01472917209 | I161: 85.64075044 | J161: -85.64075044 | K161: -6631.171091 | L161: 64919.54669 | M161: 0.1338013824
A162: 0.00015 | B162: 0.1169883804 | C162: 0.01817002181 | D162: 0.01817002181 | E162: 0.153328424 | F162: 1010.65822 | G162: 1121.702179 | H162: 0.0147102732 | I162: 85.51186519 | J162: -85.51186519 | K162: -5972.252768 | L162: 64961.4043 | M162: 0.1344350148
A163: 0.000151 | B163: 0.1169028685 | C163: 0.01825553367 | D163: 0.01825553367 | E163: 0.1534139359 | F163: 1010.652248 | G163: 1121.76714 | H163: 0.01469141423 | I163: 85.38514973 | J163: -85.38514973 | K163: -5322.776961 | L163: 65002.90093 | M163: 0.1350676937
A164: 0.000152 | B164: 0.1168174834 | C164: 0.01834091882 | D164: 0.01834091882 | E164: 0.153499321 | F164: 1010.646925 | G164: 1121.832143 | H164: 0.01467259475 | I164: 85.26056609 | J164: -85.26056609 | K164: -4682.583305 | L164: 65044.04189 | M164: 0.135699435
A165: 0.000153 | B165: 0.1167322228 | C165: 0.01842617939 | D165: 0.01842617939 | E165: 0.1535845816 | F165: 1010.642242 | G165: 1121.897187 | H165: 0.01465381432 | I165: 85.1380771 | J165: -85.1380771 | K165: -4051.514757 | L165: 65084.83239 | M165: 0.1363302546
A166: 0.000154 | B166: 0.1166470847 | C166: 0.01851131746 | D166: 0.01851131746 | E166: 0.1536697197 | F166: 1010.638191 | G166: 1121.962272 | H166: 0.01463507253 | I166: 85.01764637 | J166: -85.01764637 | K166: -3429.417505 | L166: 65125.27759 | M166: 0.1369601679
A167: 0.000155 | B167: 0.1165620671 | C167: 0.01859633511 | D167: 0.01859633511 | E167: 0.1537547373 | F167: 1010.634761 | G167: 1122.027397 | H167: 0.01461636896 | I167: 84.89923828 | J167: -84.89923828 | K167: -2816.140886 | L167: 65165.38251 | M167: 0.1375891902
A168: 0.000156 | B168: 0.1164771679 | C168: 0.01868123435 | D168: 0.01868123435 | E168: 0.1538396366 | F168: 1010.631945 | G168: 1122.092562 | H168: 0.01459770321 | I168: 84.78281798 | J168: -84.78281798 | K168: -2211.537313 | L168: 65205.15212 | M168: 0.1382173364
A169: 0.000157 | B169: 0.116392385 | C169: 0.01876601717 | D169: 0.01876601717 | E169: 0.1539244194 | F169: 1010.629734 | G169: 1122.157768 | H169: 0.01457907487 | I169: 84.66835134 | J169: -84.66835134 | K169: -1615.462187 | L169: 65244.5913 | M169: 0.1388446213
A170: 0.000158 | B170: 0.1163077167 | C170: 0.01885068552 | D170: 0.01885068552 | E170: 0.1540090877 | F170: 1010.628118 | G170: 1122.223012 | H170: 0.01456048357 | I170: 84.55580494 | J170: -84.55580494 | K170: -1027.773832 | L170: 65283.70485 | M170: 0.1394710592
A171: 0.000159 | B171: 0.1162231609 | C171: 0.01893524132 | D171: 0.01893524132 | E171: 0.1540936435 | F171: 1010.627091 | G171: 1122.288296 | H171: 0.01454192891 | I171: 84.44514605 | J171: -84.44514605 | K171: -448.3334158 | L171: 65322.49747 | M171: 0.1400966645
A172: 0.00016 | B172: 0.1161387157 | C172: 0.01901968647 | D172: 0.01901968647 | E172: 0.1541780887 | F172: 1010.626642 | G172: 1122.353618 | H172: 0.01452341052 | I172: 84.33634262 | J172: -84.33634262 | K172: 122.9951203 | L172: 65360.97382 | M172: 0.140721451
A173: 0.000161 | B173: 0.1160543794 | C173: =FAF-B173 -> 0.01910402281 | D173: =FAF-B173 -> 0.01910402281 | E173: 0.154262425 | F173: 1010.626765 | G173: 1122.418979 | H173: 0.01450492802 | I173: 84.22936325 | J173: -84.22936325 | K173: 686.3451269 | L173: 65399.13844 | M173: 0.1413454325
A174: 0.000162 | B174: 0.11597015 | C174: 0.01918825218 | D174: 0.01918825218 | E174: 0.1543466544 | F174: 1010.627452 | G174: 1122.484379 | H174: 0.01448648104 | I174: 84.12417721 | J174: -84.12417721 | K174: 1241.847315 | L174: 65436.99582 | M174: 0.1419686225
A175: 0.000163 | B175: 0.1158860259 | C175: 0.01927237635 | D175: 0.01927237635 | E175: 0.1544307786 | F175: 1010.628693 | G175: 1122.549816 | H175: 0.01446806924 | I175: 84.02075437 | J175: -84.02075437 | K175: 1789.629821 | L175: 65474.55038 | M175: 0.1425910342
A176: 0.000164 | B176: 0.1158020051 | C176: 0.01935639711 | D176: 0.01935639711 | E176: 0.1545147993 | F176: 1010.630483 | G176: 1122.61529 | H176: 0.01444969226 | I176: 83.9190652 | J176: -83.9190652 | K176: 2329.818269 | L176: 65511.80646 | M176: 0.1432126808
A177: 0.000165 | B177: 0.115718086 | C177: 0.01944031617 | D177: 0.01944031617 | E177: 0.1545987184 | F177: 1010.632813 | G177: 1122.680802 | H177: 0.01443134975 | I177: 83.81908081 | J177: -83.81908081 | K177: 2862.535828 | L177: 65548.76831 | M177: 0.1438335749
A178: 0.000166 | B178: 0.115634267 | C178: 0.01952413525 | D178: 0.01952413525 | E178: 0.1546825375 | F178: 1010.635675 | G178: 1122.746351 | H178: 0.01441304138 | I178: 83.72077284 | J178: -83.72077284 | K178: 3387.903278 | L178: 65585.44015 | M178: 0.1444537294
A179: 0.000167 | B179: 0.1155505462 | C179: 0.01960785603 | D179: 0.01960785603 | E179: 0.1547662582 | F179: 1010.639063 | G179: 1122.811936 | H179: 0.0143947668 | I179: 83.62411352 | J179: -83.62411352 | K179: 3906.039061 | L179: 65621.82609 | M179: 0.1450731564
A180: 0.000168 | B180: 0.1154669221 | C180: 0.01969148014 | D180: 0.01969148014 | E180: 0.1548498823 | F180: 1010.642969 | G180: 1122.877558 | H180: 0.01437652569 | I180: 83.52907564 | J180: -83.52907564 | K180: 4417.05934 | L180: 65657.93021 | M180: 0.1456918683
A181: 0.000169 | B181: 0.115383393 | C181: 0.01977500921 | D181: 0.01977500921 | E181: 0.1549334114 | F181: 1010.647386 | G181: 1122.943216 | H181: 0.01435831773 | I181: 83.43563251 | J181: -83.43563251 | K181: 4921.07805 | L181: 65693.7565 | M181: 0.1463098771
A182: 0.00017 | B182: 0.1152999574 | C182: 0.01985844485 | D182: 0.01985844485 | E182: 0.1550168471 | F182: 1010.652307 | G182: 1123.00891 | H182: 0.01434014259 | I182: 83.34375798 | J182: -83.34375798 | K182: 5418.206956 | L182: 65729.30889 | M182: 0.1469271945
A183: 0.000171 | B183: 0.1152166136 | C183: 0.01994178861 | D183: 0.01994178861 | E183: 0.1551001908 | F183: 1010.657726 | G183: 1123.074639 | H183: 0.01432199997 | I183: 83.2534264 | J183: -83.2534264 | K183: 5908.555696 | L183: 65764.59126 | M183: 0.1475438321
A184: 0.000172 | B184: 0.1151333602 | C184: 0.02002504203 | D184: 0.02002504203 | E184: 0.1551834442 | F184: 1010.663634 | G184: 1123.140404 | H184: 0.01430388956 | I184: 83.16461263 | J184: -83.16461263 | K184: 6392.231839 | L184: 65799.60741 | M184: 0.1481598014
A185: 0.000173 | B185: 0.1150501956 | C185: 0.02010820664 | D185: 0.02010820664 | E185: 0.1552666088 | F185: 1010.670026 | G185: 1123.206203 | H185: 0.01428581106 | I185: 83.07729202 | J185: -83.07729202 | K185: 6869.340925 | L185: 65834.3611 | M185: 0.1487751136
A186: 0.000174 | B186: 0.1149671183 | C186: 0.02019128394 | D186: 0.02019128394 | E186: 0.1553496861 | F186: 1010.676896 | G186: 1123.272037 | H186: 0.01426776416 | I186: 82.99144038 | J186: -82.99144038 | K186: 7339.98652 | L186: 65868.856 | M186: 0.1493897797
A187: 0.000175 | B187: 0.1148841268 | C187: 0.02027427538 | D187: 0.02027427538 | E187: 0.1554326776 | F187: 1010.684236 | G187: 1123.337906 | H187: 0.01424974858 | I187: 82.90703402 | J187: -82.90703402 | K187: 7804.270254 | L187: 65903.09575 | M187: 0.1500038107
A188: 0.000176 | B188: 0.1148012198 | C188: 0.02035718241 | D188: 0.02035718241 | E188: 0.1555155846 | F188: 1010.69204 | G188: 1123.403809 | H188: 0.01423176403 | I188: 82.82404966 | J188: -82.82404966 | K188: 8262.29187 | L188: 65937.08392 | M188: 0.1506172171
A189: 0.000177 | B189: 0.1147183957 | C189: 0.02044000646 | D189: 0.02044000646 | E189: 0.1555984087 | F189: 1010.700302 | G189: 1123.469747 | H189: 0.01421381023 | I189: 82.74246449 | J189: -82.74246449 | K189: 8714.149266 | L189: 65970.82403 | M189: 0.1512300096
A190: 0.000178 | B190: 0.1146356533 | C190: 0.02052274892 | D190: 0.02052274892 | E190: 0.1556811511 | F190: 1010.709017 | G190: 1123.535717 | H190: 0.01419588689 | I190: 82.66225615 | J190: -82.66225615 | K190: 9159.938533 | L190: 66004.31954 | M190: 0.1518421984
A191: 0.000179 | B191: 0.114552991 | C191: 0.02060541118 | D191: 0.02060541118 | E191: 0.1557638134 | F191: 1010.718176 | G191: 1123.601722 | H191: 0.01417799375 | I191: 82.58340266 | J191: -82.58340266 | K191: 9599.754003 | L191: 66037.57386 | M191: 0.1524537938
A192: 0.00018 | B192: 0.1144704076 | C192: 0.02068799458 | D192: 0.02068799458 | E192: 0.1558463968 | F192: 1010.727776 | G192: 1123.667759 | H192: 0.01416013054 | I192: 82.50588249 | J192: -82.50588249 | K192: 10033.68828 | L192: 66070.59033 | M192: 0.1530648058
A193: 0.000181 | B193: 0.1143879017 | C193: 0.02077050047 | D193: 0.02077050047 | E193: 0.1559289027 | F193: 1010.73781 | G193: 1123.73383 | H193: 0.01414229699 | I193: 82.4296745 | J193: -82.4296745 | K193: 10461.83229 | L193: 66103.37227 | M193: 0.1536752442
A194: 0.000182 | B194: 0.1143054721 | C194: 0.02085293014 | D194: 0.02085293014 | E194: 0.1560113323 | F194: 1010.748272 | G194: 1123.799933 | H194: 0.01412449284 | I194: 82.35475794 | J194: -82.35475794 | K194: 10884.27531 | L194: 66135.92291 | M194: 0.1542851188
A195: 0.000183 | B195: 0.1142231173 | C195: 0.0209352849 | D195: 0.0209352849 | E195: 0.1560936871 | F195: 1010.759156 | G195: 1123.866069 | H195: 0.01410671783 | I195: 82.28111246 | J195: -82.28111246 | K195: 11301.10499 | L195: 66168.24547 | M195: 0.1548944391
A196: 0.000184 | B196: 0.1141408362 | C196: 0.02101756601 | D196: 0.02101756601 | E196: 0.1561759682 | F196: 1010.770457 | G196: 1123.932237 | H196: 0.01408897172 | I196: 82.20871808 | J196: -82.20871808 | K196: 11712.40743 | L196: 66200.34309 | M196: 0.1555032145
A197: 0.000185 | B197: 0.1140586275 | C197: 0.02109977473 | D197: 0.02109977473 | E197: 0.1562581769 | F197: 1010.78217 | G197: 1123.998438 | H197: 0.01407125425 | I197: 82.13755518 | J197: -82.13755518 | K197: 12118.26717 | L197: 66232.21887 | M197: 0.1561114543
A198: 0.000186 | B198: 0.1139764899 | C198: 0.02118191228 | D198: 0.02118191228 | E198: 0.1563403145 | F198: 1010.794288 | G198: 1124.06467 | H198: 0.01405356518 | I198: 82.06760451 | J198: -82.06760451 | K198: 12518.76725 | L198: 66263.87587 | M198: 0.1567191676
A199: 0.000187 | B199: 0.1138944223 | C199: 0.02126397989 | D199: 0.02126397989 | E199: 0.1564223821 | F199: 1010.806807 | G199: 1124.130934 | H199: 0.01403590427 | I199: 81.99884718 | J199: -81.99884718 | K199: 12913.98923 | L199: 66295.31709 | M199: 0.1573263633
A200: 0.000188 | B200: 0.1138124235 | C200: 0.02134597874 | D200: 0.02134597874 | E200: 0.1565043809 | F200: 1010.819721 | G200: 1124.197229 | H200: 0.01401827128 | I200: 81.93126464 | J200: -81.93126464 | K200: 13304.01323 | L200: 66326.5455 | M200: 0.1579330503
... 1812 more rows
